Cogmind - Beta 11.1 @@@ ROGUE MODE // 2022.05.15 @ 16:02:22 Player: Sara Result: Destroyed by S-10 Pest with Light Assault Rifle Performance ------------- Evolutions (2) 1000 Regions Visited (7) 1400 Robots Destroyed (5) 25 Value Destroyed (59) 59 Prototype IDs (24) 480 Alien Tech Used (0) 0 Bonus (325) 325 TOTAL SCORE: 3289 Bonus ------- Follower Combat Kills 25 Aligned with FarCom 300 Cogmind --------- Core Integrity 0/550 Matter 300/300 Energy 98/100 System Corruption 0% Temperature Cool (0) Movement Core (50) Location -8/Materials Parts ------- > --- POWER (1) -------- (None) > --- PROPULSION (2) --- (None) > --- UTILITY (6) ------ Improved Terrain Scan Processor Advanced Terrain Scan Processor > --- WEAPON (2) ------- (None) > --- INVENTORY (5) ---- Light Deuterium Engine Experimental Sensor Array Advanced Targeting Computer Medium Laser Heavy Flail Peak State ------------ > --- POWER ------------ Light Deuterium Engine > --- PROPULSION ------- (None) > --- UTILITY ---------- Weight Redist. System Terrain Scanner Improved Terrain Scan Processor Advanced Terrain Scan Processor Targeting Computer > --- WEAPON ----------- Heavy Flail > --- INVENTORY -------- Light Deuterium Engine Experimental Sensor Array Medium Laser Medium Laser [Rating: 18] Favorites ----------- Power Ion Engine Engine Ion Engine Propulsion None Utility Targeting Computer Device Weight Redist. System Processor Targeting Computer Weapon Medium Laser Energy Gun Medium Laser Impact Weapon Heavy Flail Build | -11 -10 -10 -9 -9 -9 -8 -8 ------- Run | Scr Mat Min Mat Min Exi Min Mat Slots Evolved 4 | . . . 2 . . . 2 Power . | . . . . . . . . Propulsion . | . . . . . . . . Utility 4 | . . . 2 . . . 2 Weapon . | . . . . . . . . Parts Attached 17 | 2 4 2 4 . . 2 3 Power 5 | . 1 . 2 . . . 2 Engine 5 | . 1 . 2 . . . 2 Core . | . . . . . . . . Reactor . | . . . . . . . . Propulsion . | . . . . . . . . Treads . | . . . . . . . . Leg . | . . . . . . . . Wheel . | . . . . . . . . Hover . | . . . . . . . . Flight . | . . . . . . . . Utility 7 | . 2 1 2 . . 1 1 Device 4 | . 1 1 2 . . . . Storage . | . . . . . . . . Processor 3 | . 1 . . . . 1 1 Hackware . | . . . . . . . . Protection . | . . . . . . . . Artifact . | . . . . . . . . Weapon 5 | 2 1 1 . . . 1 . Energy Gun 4 | 2 1 1 . . . . . Energy Cannon . | . . . . . . . . Ballistic Gun . | . . . . . . . . Ballistic Cannon . | . . . . . . . . Launcher . | . . . . . . . . Special Weapon . | . . . . . . . . Impact Weapon 1 | . . . . . . 1 . Slashing Weapon . | . . . . . . . . Piercing Weapon . | . . . . . . . . Special Melee Weapon . | . . . . . . . . Unidentified Prototypes 1 | . . 1 . . . . . Parts Lost 5 | . . . . . . . 5 Power 2 | . . . . . . . 2 Propulsion . | . . . . . . . . Utility 3 | . . . . . . . 3 Weapon . | . . . . . . . . Highest Loss Streak 5 | . . . . . . . 5 To Critical Strikes . | . . . . . . . . Average Slot Usage (%) 59 | . 62 42 55 66 66 67 55 Engine 8 | . 11 . 10 11 11 11 7 Device 20 | . 12 14 23 33 33 23 14 Processor 16 | . 12 14 11 11 11 20 26 Energy Gun 10 | . 25 14 11 11 11 6 . Impact Weapon 2 | . . . . . . 6 7 Naked Turns . | . . . . . . . . Heaviest Build 11 | 2 9 3 9 9 9 11 9 Greatest Support 9 | 3 9 3 9 9 9 9 9 Greatest Overweight (x) 1 | . . . . . . 1 . Average Overweight (x) . | . . . . . . . . Largest Inventory Capacity 5 | 5 5 5 5 5 5 5 5 Average Capacity 5 | 5 5 5 5 5 5 5 5 Most Carried 5 | 2 5 5 5 5 5 5 5 Average Carried 4 | 1 2 4 4 5 5 4 4 Final Capacity 5 | 5 5 5 5 5 5 5 5 Final Carried 5 | 2 5 5 5 5 5 5 5 Class Distribution -------------------- 68% | Mutant 28% | Scout Dominant Class ---------------- Mutant | -10/Materials Mutant | -10/Mines Mutant | -9/Materials Mutant | -9/Mines Mutant | -9/Exiles Scout | -8/Mines Scout | -8/Materials Resources | -11 -10 -10 -9 -9 -9 -8 -8 ----------- Run | Scr Mat Min Mat Min Exi Min Mat Matter Collected 340 | 67 160 38 14 26 . 10 25 Remotely . | . . . . . . . . Salvage Created 212 | . 56 . 14 . . . 142 Parts 9 | . 4 . 3 . . . 2 Haulers Intercepted 1 | . 1 . . . . . . Recyclers Shooed . | . . . . . . . . Parts Field Recycled . | . . . . . . . . Retrieved Matter . | . . . . . . . . Parts Self-Destructed . | . . . . . . . . Prevented . | . . . . . . . . Kills | -11 -10 -10 -9 -9 -9 -8 -8 ------- Run | Scr Mat Min Mat Min Exi Min Mat Combat Hostiles Destroyed 1 | . . . . . . . 1 Classes Destroyed 5 | . 1 . 1 . . . 3 Worker 1 | . . . . . . . 1 Builder 1 | . . . 1 . . . . Hauler 1 | . 1 . . . . . . Recycler 1 | . . . . . . . 1 Sentry 1 | . . . . . . . 1 Best Kill Streak 3 | . 1 . 1 . . . 3 Combat Bots Only 1 | . . . . . . . 1 Max Kills in Single Turn 1 | . 1 . 1 . . . 1 Gunslinging . | . . . . . . . . Exploded . | . . . . . . . . Melee . | . . . . . . . . Uniques/NPCs Destroyed . | . . . . . . . . Combat | -11 -10 -10 -9 -9 -9 -8 -8 -------- Run | Scr Mat Min Mat Min Exi Min Mat Damage Taken 1088 | . 83 24 32 . . 180 769 Core 697 | . 10 11 . . . 120 556 Absorbed by Shields . | . . . . . . . . Regen/Repaired (Parts) 49 | . . . 49 . . . . Core Remaining (%) 87 | 100 . 91 . . . 70 . Volleys Fired 5 | . 3 . 1 . . 1 . Largest 2 | . 2 . 1 . . 1 . Hottest 90 | . 90 . 50 . . 50 . Shots Fired 6 | . 4 . 1 . . 1 . Gun 6 | . 4 . 1 . . 1 . Cannon . | . . . . . . . . Launcher . | . . . . . . . . Special . | . . . . . . . . Kinetic . | . . . . . . . . Thermal 3 | . 1 . 1 . . 1 . Explosive . | . . . . . . . . Electromagnetic 3 | . 3 . . . . . . Robot Hit Streak 2 | . 2 . 1 . . . . Robot Miss Streak 1 | . 1 . . . . . . Penetration Max . | . . . . . . . . Secondary Targets . | . . . . . . . . Shots Hit Robots 10 | . 2 . 1 . . 1 6 Core Hits 7 | . 4 . 1 . . . 2 Critical Kills . | . . . . . . . . Critical Parts Destroyed 2 | . . . . . . . 2 Critical Strikes 2 | . . . . . . . 2 Smash 2 | . . . . . . . 2 Melee Attacks 11 | . . . . . . 3 8 Impact 11 | . . . . . . 3 8 Slashing . | . . . . . . . . Piercing . | . . . . . . . . Sneak Attacks 2 | . . . . . . . 2 Combat Hostiles . | . . . . . . . . Follow-up Attacks . | . . . . . . . . Damage Inflicted 531 | . 52 . 12 . . 70 397 Guns 40 | . 28 . 12 . . . . Cannons . | . . . . . . . . Explosions . | . . . . . . . . Melee 448 | . . . . . . 67 381 Ramming 43 | . 24 . . . . 3 16 Kinetic . | . . . . . . . . Thermal 12 | . . . 12 . . . . Explosive . | . . . . . . . . Electromagnetic 28 | . 28 . . . . . . Impact 448 | . . . . . . 67 381 Slashing . | . . . . . . . . Piercing . | . . . . . . . . Highest Corruption 2 | . . . . . . 2 . Average Corruption 2 | . . . . . . 2 . Corruption Purged . | . . . . . . . . Corruption Blocked . | . . . . . . . . Overload Shots . | . . . . . . . . Overflow Damage 163 | . . . . . . . 163 Projectiles 11 | . . . . . . . 11 Explosions . | . . . . . . . . Melee 152 | . . . . . . . 152 Knockbacks 2 | . . . . . . . 2 Impact 1 | . . . . . . . 1 Kinetic . | . . . . . . . . Secondary 1 | . . . . . . . 1 Self-Inflicted Damage 18 | . 11 . . . . 1 6 Shots . | . . . . . . . . Rammed 9 | . 4 . . . . 1 4 Targets Rammed 9 | . 4 . . . . 1 4 Kicked . | . . . . . . . . Crushed . | . . . . . . . . Highest Temperature 24 | . 24 . 4 . . 4 . Average Temperature 9 | . 14 . 3 . . 3 . Received Heat Transfer 243 | . 39 15 18 . . 81 90 Siege Activations . | . . . . . . . . Robots Corrupted . | . . . . . . . . Combat Hostiles . | . . . . . . . . Parts Fried 5 | . . . . . . . 5 Impact Corruptions 4 | . . . . . . . 4 Robots Melted . | . . . . . . . . Combat Hostiles . | . . . . . . . . Parts Melted . | . . . . . . . . Heat Transferred 37 | . . . 37 . . . . Parts Sabotaged . | . . . . . . . . Parts Stolen . | . . . . . . . . Parts Stripped . | . . . . . . . . Power Chain Reactions . | . . . . . . . . Missiles Intercepted . | . . . . . . . . Alert | -11 -10 -10 -9 -9 -9 -8 -8 ------- Run | Scr Mat Min Mat Min Exi Min Mat Peak Influence 221 | . 118 90 51 19 . 32 221 Initial 45 | . . 45 35 19 . . 12 Average 47 | . 58 84 32 19 . 3 62 Maximum Alert Level 1 | . . . . . . . 1 Low Security (%) 98 | 100 100 100 100 100 . 100 94 Level 1 1 | . . . . . . . 5 Level 2 . | . . . . . . . . Level 3 . | . . . . . . . . Level 4 . | . . . . . . . . Level 5 . | . . . . . . . . High Security . | . . . . . . . . Max Security . | . . . . . . . . Squads Dispatched 5 | . 1 . 1 1 . . 2 Investigation 1 | . . . . 1 . . . Extermination . | . . . . . . . . Reinforcement 4 | . 1 . 1 . . . 2 Assault . | . . . . . . . . Garrison . | . . . . . . . . Intercept . | . . . . . . . . Searches Triggered . | . . . . . . . . Construction Impeded . | . . . . . . . . Haulers Reinforced . | . . . . . . . . Active Scanning Responses . | . . . . . . . . Cargo Convoy Interrupts . | . . . . . . . . Stealth | -11 -10 -10 -9 -9 -9 -8 -8 --------- Run | Scr Mat Min Mat Min Exi Min Mat Distress Signals 3 | . 1 . . . . . 2 Communications Jammed . | . . . . . . . . Distress Signals . | . . . . . . . . Times Spotted 50 | . 9 2 5 . . 8 26 Peak Tracking Total 18 | . 4 2 4 . . 9 18 Tactical Retreats 9 | . 2 1 1 . . 1 4 Traps | -11 -10 -10 -9 -9 -9 -8 -8 ------- Run | Scr Mat Min Mat Min Exi Min Mat Traps Triggered . | . . . . . . . . Indirectly . | . . . . . . . . Trap Hack Attempts . | . . . . . . . . Triggered . | . . . . . . . . Disarmed . | . . . . . . . . Reprogrammed . | . . . . . . . . Reused . | . . . . . . . . Traps Extracted . | . . . . . . . . Installed . | . . . . . . . . Triggered . | . . . . . . . . Machines | -11 -10 -10 -9 -9 -9 -8 -8 ---------- Run | Scr Mat Min Mat Min Exi Min Mat Machines Disabled . | . . . . . . . . Max in Single Turn . | . . . . . . . . Machines Sabotaged . | . . . . . . . . Garrisons Compromised . | . . . . . . . . Overloaded Fab Kills . | . . . . . . . . Hacking | -11 -10 -10 -9 -9 -9 -8 -8 --------- Run | Scr Mat Min Mat Min Exi Min Mat Machines Accessed 7 | . 3 . 1 1 1 . 1 Terminals 3 | . 2 . . . . . 1 Fabricators . | . . . . . . . . Repair Stations 1 | . . . 1 . . . . Recycling Units 1 | . 1 . . . . . . Scanalyzers . | . . . . . . . . Garrison Access . | . . . . . . . . Total Hacks 13 | . 5 . 3 1 1 . 3 Successful 8 | . 2 . 2 1 1 . 2 Failed 5 | . 3 . 1 . . . 1 Catastrophic 1 | . 1 . . . . . . Database Lockouts . | . . . . . . . . Manual 8 | . 4 . . . 1 . 3 Terminals 6 | . 3 . . . . . 3 Fabricators . | . . . . . . . . Repair Stations 3 | . . . 3 . . . . Recycling Units 2 | . 2 . . . . . . Scanalyzers . | . . . . . . . . Garrison Access . | . . . . . . . . Terminal Hacks 3 | . 1 . . 1 1 . . Open Door 1 | . . . . 1 . . . Terminal Index 1 | . 1 . . . . . . EX-Prototype ID Bank 1 | . . . . . 1 . . Fabricator Hacks . | . . . . . . . . Repair Station Hacks 2 | . . . 2 . . . . Scan Component 1 | . . . 1 . . . . Repair 1 | . . . 1 . . . . Recycling Unit Hacks 1 | . 1 . . . . . . Retrieve Components 1 | . 1 . . . . . . Scanalyzer . | . . . . . . . . Garrison Access Hacks . | . . . . . . . . Unauthorized Hacks 2 | . . . . . . . 2 Terminals 2 | . . . . . . . 2 Botnet 1 | . . . . . . . 1 Detonate 1 | . . . . . . . 1 Fabricators . | . . . . . . . . Repair Stations . | . . . . . . . . Recycling Units . | . . . . . . . . Scanalyzers . | . . . . . . . . Garrison Access . | . . . . . . . . Data Cores Recovered . | . . . . . . . . Used . | . . . . . . . . Hacking Detections 2 | . 2 . . . . . . Full Trace Events 1 | . 1 . . . . . . Feedback Events . | . . . . . . . . Feedback Blocked . | . . . . . . . . Robot Schematics Acquired . | . . . . . . . . Robots Built . | . . . . . . . . Authchips . | . . . . . . . . Time . | . . . . . . . . Total Robot Build Rating . | . . . . . . . . Part Schematics Acquired . | . . . . . . . . Parts Built . | . . . . . . . . Authchips . | . . . . . . . . Time . | . . . . . . . . Total Part Build Rating . | . . . . . . . . Parts Repaired 1 | . . . 1 . . . . Time 36 | . . . 36 . . . . Parts Recycled . | . . . . . . . . Recycled Matter . | . . . . . . . . Retrieved Matter . | . . . . . . . . Retrieved Components 5 | . 5 . . . . . . Parts Scanalyzed . | . . . . . . . . Part Schematics Acquired . | . . . . . . . . Parts Damaged . | . . . . . . . . Bothacking | -11 -10 -10 -9 -9 -9 -8 -8 ------------ Run | Scr Mat Min Mat Min Exi Min Mat Used RIF Installer . | . . . . . . . . Robots Hacked . | . . . . . . . . Non-combat . | . . . . . . . . Combat . | . . . . . . . . Robot Hacks Applied . | . . . . . . . . Relay Couplers Released . | . . . . . . . . Fabnet Peak Effective % . | . . . . . . . . Robots Rewired . | . . . . . . . . Allies Hacked . | . . . . . . . . Hacks Repelled . | . . . . . . . . Allies | -11 -10 -10 -9 -9 -9 -8 -8 -------- Run | Scr Mat Min Mat Min Exi Min Mat Total Allies 3 | . . 3 . . . . . Largest Group 3 | . . 3 3 . . . . Highest-Rated Group 40 | . . 40 40 . . . . Highest-Rated Ally 16 | . . 16 16 . . . . Total Orders . | . . . . . . . . Ally Attacks 17 | . . . 17 . . . . Total Damage 242 | . . . 242 . . . . Kills 1 | . . . 1 . . . . Allies Corrupted . | . . . . . . . . Allies Melted . | . . . . . . . . Intel | -11 -10 -10 -9 -9 -9 -8 -8 ------- Run | Scr Mat Min Mat Min Exi Min Mat Robot Analysis Total . | . . . . . . . . Derelict Logs Recovered 2 | . . 1 . 1 . . . Drone Launches . | . . . . . . . . Drone Recoveries . | . . . . . . . . Exploration | -11 -10 -10 -9 -9 -9 -8 -8 ------------- Run | Scr Mat Min Mat Min Exi Min Mat Turns Passed 1356 | 19 287 130 117 194 110 132 367 Spaces Moved 1841 | 27 416 240 125 245 220 174 394 Core 1841 | 27 416 240 125 245 220 174 394 Treads . | . . . . . . . . Legs . | . . . . . . . . Wheels . | . . . . . . . . Hover . | . . . . . . . . Flight . | . . . . . . . . Fastest Speed 50 | 50 50 50 50 50 50 50 50 Average Speed 50 | 50 50 50 50 50 50 54 50 Slowest Speed 100 | 50 50 50 50 50 50 100 50 Overloaded Moves . | . . . . . . . . Propulsion Burnouts . | . . . . . . . . Robots Hopped . | . . . . . . . . Cave-ins Triggered . | . . . . . . . . Exploration Rate (%) 43 | 3 71 46 14 64 61 45 44 Regions Visited 7 Branch Regions 4 Pre-discovered Areas 1 | . . 1 . . . . . Known Exits Taken . | . . . . . . . . Unknown Exits Taken 7 | 1 1 1 1 1 1 1 . Scrap Searched 2 | . . 1 . . . 1 . Spaces Dug 3 | . . . . . . 2 1 Terrain Destroyed 3 | . . . . . . 2 1 Melee 3 | . . . . . . 2 1 Projectile . | . . . . . . . . AOE . | . . . . . . . . Terrain Rammed . | . . . . . . . . Walls Destroyed . | . . . . . . . . Machines Disabled . | . . . . . . . . Actions | -11 -10 -10 -9 -9 -9 -8 -8 --------- Run | Scr Mat Min Mat Min Exi Min Mat Total 2240 | 30 490 249 177 318 219 204 553 Wait 337 | . 58 6 42 70 . 21 140 Move 1834 | 26 415 239 124 244 219 173 394 Hop . | . . . . . . . . Pick Up 15 | 2 4 1 4 2 . 1 1 Fast Attach 5 | 1 1 . 2 . . . 1 Attach 8 | . 3 1 1 . . 1 2 Detach 5 | . 2 . . . . 1 2 Swap 4 | 1 . 1 1 . . 1 . Drop 7 | . . 1 2 2 . 1 1 Fire 5 | . 3 . 1 . . 1 . Melee 11 | . . . . . . 3 8 Ram 9 | . 4 . . . . 1 4 Kick . | . . . . . . . . Crush . | . . . . . . . . Escape Stasis . | . . . . . . . . Rewire . | . . . . . . . . Trap . | . . . . . . . . Miscellaneous . | . . . . . . . . Route ------- -11/Scrapyard -10/Materials (discovered 3 exits: *Mat x2 / [*Min]) -10/Mines -9/Materials -9/Mines (discovered 3 exits: *Mat x2 / *Exi) -9/Exiles -8/Mines -8/Materials History --------- Turn | Location | Event 11 | -11/Scrapyard | Discovered new exit (range 15) 20 | -11/Scrapyard | Entered Materials 193 | -10/Materials | Discovered new exit (range 13) 283 | -10/Materials | Discovered new exit (range 11) 299 | -10/Materials | Discovered new exit (range 16) 301 | -10/Materials | Build established: Mutant 307 | -10/Materials | Entered Mines 332 | -10/Mines | Found a damaged Exp. Sensor Array with a note attached 334 | -10/Mines | Found Prototype Device 357 | -10/Mines | Assembled infested the area 358 | -10/Mines | Identified Exp. Sensor Array 362 | -10/Mines | Assisted by a Guerilla fighting off Assembled 388 | -10/Mines | Found a hidden stash of uninstalled traps 421 | -10/Mines | Discovered new exit (range 15) 429 | -10/Mines | Assisted by bots powering up and referring to "LRC-V3" 434 | -10/Mines | Learned location of Storage (-7) 437 | -10/Mines | Entered Materials 437 | -9/Materials | Accompanied by 3 allies 437 | -9/Materials | Evolved 2 slots: Utility x2 496 | -9/Materials | Repaired Broken Ion Engine 550 | -9/Materials | Discovered new exit (range 8) 554 | -9/Materials | Entered Mines 560 | -9/Mines | Met a Derelict shopkeep closing up shop 584 | -9/Mines | Received a Rocket Launcher from a helpful Derelict 688 | -9/Mines | Discovered new exit (range 7) 730 | -9/Mines | Discovered new exit (range 10) 745 | -9/Mines | Deemed a non-threat by the Exiles lab entrance 745 | -9/Mines | Discovered new exit (range 5) 748 | -9/Mines | Entered Exiles 761 | -9/Exiles | Met 8R-AWN 769 | -9/Exiles | Met EX-HEX 785 | -9/Exiles | Met EX-BIN 792 | -9/Exiles | Aligned with FarCom system 792 | -9/Exiles | Given EX-Vault access code 806 | -9/Exiles | Opened EX-Vault 818 | -9/Exiles | Warned to stay clear of 0b10 Research branches 833 | -9/Exiles | Met EX-DEC 850 | -9/Exiles | Discovered new exit (range 15) 858 | -9/Exiles | Entered Mines 980 | -8/Mines | Discovered new exit (range 13) 990 | -8/Mines | Entered Materials 990 | -8/Materials | Evolved 2 slots: Utility x2 1247 | -8/Materials | Build established: Scout 1320 | -8/Materials | Core integrity fell below 50% 1346 | -8/Materials | Core integrity fell below 20% 1354 | -8/Materials | Lost 5 parts (2p3u) 1357 | -8/Materials | Destroyed by S-10 Pest with Light Assault Rifle Last Messages --------------- 01288_ Destroyed Beam Rifle. 01288_ Y-45 Defender system corrupted by crushing effect. 01289_ Y-45 Defender system terminally corrupted. 01289_ Imp. Ion Engine fried. 01289_ Lgt. Treads fried. 01292_ Dropped Med. Laser. 01295_ Terrain Scanner destroyed. 01296_ Slammed into G-47 Trooper. 01297_ Critical hit (Burn: +37). 01298_ S-10 Pest destroyed. 01301_ Slammed into K-01 Serf. 01323_ Targeting Computer destroyed. 01338_ W-25 Informer sends out distress signal. 01344_ O-16 Technician: "IFF HANDSHAKE FAILED. SECURING TERMINAL." 01347_ O-16 Technician uses terminal to summon reinforcements. 01347_ ALERT: Hostiles spotted, dispatching reinforcements to Terminal M001. 01347_ O-16 Technician locks terminal. 01349_ S-10 Pest destroyed. 01351_ K-01 Serf collects debris. Map ----- +----------------------------------------------------+ | ?? ??????????????????????????????????????????? | | ??# #??????????????????????????????????????????? | | ??# #??????????????????????????????????????????? | | ??# #??????????????????????????????????????????? | | ??# +??????????????????????????????????????????? | | ??# #??????????????????????????????????????????? | | ??# #??????????????????????????????????????????? | | ??# #??????????????????????????????????????????? | | ??# #?????????????????????????????????????????#? | | ??# #???????????????????????????????????????? #? | | ??# #??????????????????????????????????????? #? | | ### ####################################### #? | | #? | | #? | | g gb Y #? | | ####+###########+###### ############ #####???? | | ??? ???????? ???# #??????????# #???????? | | # ???????# =#?# #??????????# #???????? | | #? ??????# " " #?# #??????????# #???????? | | #? ??????# "R" #?# #??????????# #???????? | | # ?????# """ #?# #??????????# #???????? | | # """ ?????# =#?# #??????????# #???????? | | # """ ????########?# #???###????# #???????? | | # """ #????????????# #???# ??# #???????? | | # #????????????# #???# """ # #???????? | | ####??####????????????# @#???# """ + #???????? | | #####???###???????????# #???# """ # #???????? | | #???##??##????????????# #???# ??# #???????? | | ##?######?#???????????#t #???#! ????# #####???? | | #?#?#??#?##???????????# #???#??????# [[#???? | | ??#?######????????????# #??????????#s [[#???? | | ###?#???###???????????# #??????????# !!#???? | | ?#?#?#?#??##??????????# #??????????# !!#???? | | #######?#?#?#?????????# #??????????# [[#???? | | ###????#?#????????????# s#??????????# [[#???? | | ###??######??#?#??????# ss#????? ???## #####???? | | ##########?###?########s #######+### #??????? | | #?##?#####??#?## T s* [#??????? | | ###?####?##???## ss #??????? | | #########??##??# """ """s """ """ ###????? | | #########? #???# """s """ """ """ ""#????? | | ### ?? ?# ^""" """ ^""" """ T"#????? | | ### " "??" #* """ """ """ """ ""#????? | | ### T "?"? # ###????? | | ### " ""?? # [ #??????? | | ! #?# ?? + ] =%[ #??????? | | ### ?# = =* #??????? | | ### ? ######### #??????? | | ### ?????????##+#############+###??????? | | ### ????????? ??????????? ????????? | +----------------------------------------------------+ Best States ------------- Heat Dissipation 31 Energy Generation 14 Energy Capacity 250 Matter Stores 300 Matter Capacity 300 Sight Range 16 Robot Scan Range 20 Terrain Scan Range 14 Terrain Scan Density 310 Additional Mass Support 6 Evasion (%) 50 Targeting Accuracy 5 Item Schematics ----------------- None Robot Schematics ------------------ None Fabricated ------------ Nothing Alien Tech Used ----------------- None Achievements -------------- None Challenges ------------ None Game ------ Seed BiomechanicalUltimateBooster Manual? 0 Play Time 00:20:25 Cumulative 104.3 hours Start 2022.05.15 @ 15:43:09 End 2022.05.15 @ 16:02:22 Sessions 1 Manual Loads 0 Difficulty Rogue Special Mode None Game No. 142 Rogue 142 Adventurer 0 Explorer 0 Win Type - Total 1 Types 1/0/0/0/0/0/0/0/0 Lore% 58 Gallery% 55 Achievement% 48 Wizard Run 0 Options --------- ASCII 0 Keyboard 0 Movement Numpad Keybinds 0 Fullscreen 1 Font 18/X11Bold Map View 76x50 Tactical HUD 1 Map Filters NONE Filters NONE Steam X RUN: d952ba64-c2f4-44e4-b554-5278f57d844a